[Event "Titled Tuesday Blitz January 17 Early 2023"]
[White "marik_spb"]
[Black "Agasarov, Benik"]
[BlackFideId "13314823"]
[WhiteElo "2466"]
[BlackElo "2235"]
[Result "1-0"]
[Round "04"]
[TimeControl "180+2"]
[Date "2023.01.17"]
[WhiteClock "0:00:11"]
[BlackClock "0:00:03"]

1. d4 {[%clk 0:02:52]}  Nf6 {[%clk 0:02:56]} 2. c4 {[%clk 0:02:52]}  e6 {[%clk 0:02:51]} 3. Nf3 {[%clk 0:02:51]}  d5 {[%clk 0:02:47]} 4. g3 {[%clk 0:02:51]}  Bb4+ {[%clk 0:02:41]} 5. Bd2 {[%clk 0:02:40]}  Be7 {[%clk 0:02:40]} 6. Bg2 {[%clk 0:02:04]}  O-O {[%clk 0:02:39]} 7. O-O {[%clk 0:02:04]}  c6 {[%clk 0:02:39]} 8. b3 {[%clk 0:02:04]}  b6 {[%clk 0:02:39]} 9. Qc2 {[%clk 0:02:04]}  a5 {[%clk 0:02:38]} 10. Bc3 {[%clk 0:02:02]}  Ba6 {[%clk 0:02:37]} 11. Nbd2 {[%clk 0:02:03]}  Nbd7 {[%clk 0:02:36]} 12. Rfd1 {[%clk 0:02:00]}  Rc8 {[%clk 0:02:34]} 13. e4 {[%clk 0:01:59]}  b5 {[%clk 0:02:31]} 14. e5 {[%clk 0:01:52]}  Ne8 {[%clk 0:02:30]} 15. c5 {[%clk 0:01:52]}  b4 {[%clk 0:02:27]} 16. Bb2 {[%clk 0:01:51]}  f5 {[%clk 0:02:17]} 17. a3 {[%clk 0:01:41]}  Bb5 {[%clk 0:02:13]} 18. Nf1 {[%clk 0:01:36]}  Nc7 {[%clk 0:02:09]} 19. Qd2 {[%clk 0:01:30]}  Rb8 {[%clk 0:02:04]} 20. axb4 {[%clk 0:01:27]}  axb4 {[%clk 0:02:04]} 21. Ne3 {[%clk 0:01:20]}  Kh8 {[%clk 0:02:00]} 22. Nc2 {[%clk 0:01:08]}  Na6 {[%clk 0:01:55]} 23. Nfe1 {[%clk 0:01:03]}  g5 {[%clk 0:01:46]} 24. Nd3 {[%clk 0:01:02]}  f4 {[%clk 0:01:43]} 25. Ndxb4 {[%clk 0:00:59]}  Nxb4 {[%clk 0:01:42]} 26. Nxb4 {[%clk 0:01:00]}  f3 {[%clk 0:01:38]} 27. Bh3 {[%clk 0:00:57]}  Qe8 {[%clk 0:01:29]} 28. Bg4 {[%clk 0:00:30]}  h5 {[%clk 0:01:14]} 29. Bxe6 {[%clk 0:00:20]}  Bxc5 {[%clk 0:01:14]} 30. dxc5 {[%clk 0:00:20]}  Qxe6 {[%clk 0:01:13]} 31. Qxg5 {[%clk 0:00:20]}  Rf5 {[%clk 0:00:50]} 32. Qh4 {[%clk 0:00:19]}  Rg8 {[%clk 0:00:49]} 33. Ra7 {[%clk 0:00:16]}  Rfg5 {[%clk 0:00:32]} 34. Rxd7 {[%clk 0:00:14]}  d4 {[%clk 0:00:02]} 35. Bxd4 {[%clk 0:00:14]}  Qxb3 {[%clk 0:00:01]} 36. e6+ {[%clk 0:00:13]}  R8g7 {[%clk 0:00:01]} 37. Bxg7+ {[%clk 0:00:13]}  Kg8 {[%clk 0:00:02]} 38. Rd8+ {[%clk 0:00:12]}  Kh7 {[%clk 0:00:02]} 39. Qxg5 {[%clk 0:00:10]}  Bd3 {[%clk 0:00:02]} 40. Qxh5+ {[%clk 0:00:09]}  Kxg7 {[%clk 0:00:02]} 41. Qg5+ {[%clk 0:00:09]}  Bg6 {[%clk 0:00:02]} 42. Qe7+ {[%clk 0:00:08]}  Kh6 {[%clk 0:00:02]} 43. Rh8+ {[%clk 0:00:09]}  Bh7 {[%clk 0:00:02]} 44. Rxh7+ {[%clk 0:00:09]}  Kg6 {[%clk 0:00:03]} 45. Qf7+ {[%clk 0:00:09]}  Kg5 {[%clk 0:00:03]} 46. Rh5+ {[%clk 0:00:10]}  Kg4 {[%clk 0:00:03]} 47. Qf5# {[%clk 0:00:11]} 1-0


[Site "https://www.chess.com"]

[Event "Titled Tuesday Blitz January 17 Early 2023"]
[White "Golding, Alex"]
[Black "Koellner, Ruben Gideon"]
[WhiteFideId "427241"]
[BlackFideId "12993093"]
[WhiteElo "2318"]
[BlackElo "2426"]
[Result "0-1"]
[Round "04"]
[TimeControl "180+2"]
[Date "2023.01.17"]
[WhiteClock "0:00:04"]
[BlackClock "0:00:37"]

1. d4 {[%clk 0:02:58]}  d6 {[%clk 0:03:00]} 2. e4 {[%clk 0:02:56]}  Nf6 {[%clk 0:02:59]} 3. Nc3 {[%clk 0:02:55]}  e5 {[%clk 0:03:00]} 4. dxe5 {[%clk 0:02:55]}  dxe5 {[%clk 0:03:01]} 5. Qxd8+ {[%clk 0:02:55]}  Kxd8 {[%clk 0:03:02]} 6. Bg5 {[%clk 0:02:50]}  Be6 {[%clk 0:03:02]} 7. O-O-O+ {[%clk 0:02:46]}  Nd7 {[%clk 0:03:01]} 8. f3 {[%clk 0:02:42]}  Bd6 {[%clk 0:03:00]} 9. Nge2 {[%clk 0:02:35]}  h6 {[%clk 0:03:00]} 10. Be3 {[%clk 0:02:35]}  Ke7 {[%clk 0:03:00]} 11. a3 {[%clk 0:02:33]}  a6 {[%clk 0:03:00]} 12. g4 {[%clk 0:02:31]}  b5 {[%clk 0:02:58]} 13. Ng3 {[%clk 0:02:30]}  g6 {[%clk 0:02:57]} 14. h4 {[%clk 0:02:30]}  h5 {[%clk 0:02:57]} 15. g5 {[%clk 0:02:30]}  Nh7 {[%clk 0:02:55]} 16. Bh3 {[%clk 0:02:29]}  c6 {[%clk 0:02:40]} 17. Nge2 {[%clk 0:02:25]}  Rhd8 {[%clk 0:02:36]} 18. Bxe6 {[%clk 0:02:14]}  Kxe6 {[%clk 0:02:35]} 19. Rhf1 {[%clk 0:02:09]}  Bc5 {[%clk 0:02:16]} 20. Bd2 {[%clk 0:01:53]}  Ke7 {[%clk 0:02:08]} 21. Kb1 {[%clk 0:01:51]}  Nhf8 {[%clk 0:02:07]} 22. f4 {[%clk 0:01:44]}  exf4 {[%clk 0:02:07]} 23. Bxf4 {[%clk 0:01:41]}  Ne6 {[%clk 0:02:06]} 24. Bg3 {[%clk 0:01:24]}  Nb6 {[%clk 0:01:56]} 25. Rd3 {[%clk 0:01:18]}  Nc4 {[%clk 0:01:51]} 26. Ka2 {[%clk 0:01:08]}  Bd6 {[%clk 0:01:35]} 27. Rdf3 {[%clk 0:00:59]}  Rf8 {[%clk 0:01:34]} 28. b3 {[%clk 0:00:55]}  Bxg3 {[%clk 0:01:32]} 29. bxc4 {[%clk 0:00:56]}  Be5 {[%clk 0:01:31]} 30. cxb5 {[%clk 0:00:50]}  axb5 {[%clk 0:01:29]} 31. Nb1 {[%clk 0:00:40]}  Ra4 {[%clk 0:01:17]} 32. Nec3 {[%clk 0:00:32]}  Rc4 {[%clk 0:01:14]} 33. a4 {[%clk 0:00:20]}  bxa4 {[%clk 0:01:07]} 34. Ka3 {[%clk 0:00:13]}  Nd4 {[%clk 0:01:03]} 35. R3f2 {[%clk 0:00:11]}  Nb5+ {[%clk 0:01:01]} 36. Nxb5 {[%clk 0:00:10]}  cxb5 {[%clk 0:01:02]} 37. c3 {[%clk 0:00:09]}  Bxc3 {[%clk 0:01:01]} 38. Nxc3 {[%clk 0:00:08]}  Rxc3+ {[%clk 0:01:02]} 39. Kb4 {[%clk 0:00:09]}  Rb3+ {[%clk 0:01:02]} 40. Kc5 {[%clk 0:00:09]}  a3 {[%clk 0:00:58]} 41. e5 {[%clk 0:00:06]}  Re3 {[%clk 0:00:52]} 42. Kxb5 {[%clk 0:00:06]}  Rxe5+ {[%clk 0:00:52]} 43. Kb4 {[%clk 0:00:06]}  Re3 {[%clk 0:00:49]} 44. Rc1 {[%clk 0:00:03]}  Rb8+ {[%clk 0:00:48]} 45. Ka4 {[%clk 0:00:03]}  Rb7 {[%clk 0:00:46]} 46. Rcc2 {[%clk 0:00:02]}  Re6 {[%clk 0:00:43]} 47. Ka5 {[%clk 0:00:03]}  Re4 {[%clk 0:00:39]} 48. Ka6 {[%clk 0:00:03]}  Rd7 {[%clk 0:00:38]} 49. Kb6 {[%clk 0:00:03]}  Rxh4 {[%clk 0:00:37]} 50. Kb5 {[%clk 0:00:03]}  Rg4 {[%clk 0:00:37]} 51. Rce2+ {[%clk 0:00:03]}  Kf8 {[%clk 0:00:37]} 52. Rc2 {[%clk 0:00:03]}  Rxg5+ {[%clk 0:00:37]} 53. Kb4 {[%clk 0:00:04]} 0-1


[Site "https://www.chess.com"]

[Event "Titled Tuesday Blitz January 17 Early 2023"]
[White "Alex_Sahakyan2006"]
[Black "Manukian, Artak"]
[BlackFideId "13301373"]
[WhiteElo "2675"]
[BlackElo "2196"]
[Result "1-0"]
[Round "04"]
[TimeControl "180+2"]
[Date "2023.01.17"]
[WhiteClock "0:00:57"]
[BlackClock "0:00:07"]

1. g3 {[%clk 0:03:00]}  h5 {[%clk 0:02:59]} 2. Nf3 {[%clk 0:03:00]}  d6 {[%clk 0:02:59]} 3. c4 {[%clk 0:02:58]}  e5 {[%clk 0:02:59]} 4. Nc3 {[%clk 0:02:58]}  h4 {[%clk 0:02:59]} 5. Nxh4 {[%clk 0:02:58]}  Rxh4 {[%clk 0:03:00]} 6. gxh4 {[%clk 0:02:59]}  Qxh4 {[%clk 0:03:00]} 7. Bg2 {[%clk 0:02:58]}  Nf6 {[%clk 0:02:57]} 8. h3 {[%clk 0:02:58]}  Nc6 {[%clk 0:02:57]} 9. d3 {[%clk 0:02:58]}  Be6 {[%clk 0:02:50]} 10. Nd5 {[%clk 0:02:54]}  Bxd5 {[%clk 0:02:49]} 11. cxd5 {[%clk 0:02:55]}  Ne7 {[%clk 0:02:46]} 12. Qb3 {[%clk 0:02:48]}  O-O-O {[%clk 0:02:37]} 13. Qc4 {[%clk 0:02:48]}  Qh5 {[%clk 0:02:17]} 14. Be3 {[%clk 0:02:45]}  Kb8 {[%clk 0:02:05]} 15. Rc1 {[%clk 0:02:40]}  Rc8 {[%clk 0:01:51]} 16. Bf3 {[%clk 0:02:40]}  Qg6 {[%clk 0:01:34]} 17. a4 {[%clk 0:02:14]}  Nf5 {[%clk 0:01:31]} 18. a5 {[%clk 0:02:07]}  Nxe3 {[%clk 0:01:24]} 19. fxe3 {[%clk 0:02:08]}  a6 {[%clk 0:01:19]} 20. Bg4 {[%clk 0:02:04]}  Nxg4 {[%clk 0:01:17]} 21. Qxg4 {[%clk 0:02:05]}  Qh6 {[%clk 0:01:15]} 22. Kd2 {[%clk 0:02:01]}  g6 {[%clk 0:01:09]} 23. Qd7 {[%clk 0:02:01]}  f5 {[%clk 0:01:06]} 24. Rc4 {[%clk 0:02:00]}  f4 {[%clk 0:00:57]} 25. Rhc1 {[%clk 0:01:50]}  fxe3+ {[%clk 0:00:54]} 26. Kd1 {[%clk 0:01:45]}  Qg7 {[%clk 0:00:25]} 27. Qxg7 {[%clk 0:01:11]}  Bxg7 {[%clk 0:00:26]} 28. Rg4 {[%clk 0:01:11]}  Rh8 {[%clk 0:00:19]} 29. Rxg6 {[%clk 0:01:10]}  Bf8 {[%clk 0:00:20]} 30. Kc2 {[%clk 0:01:02]}  Be7 {[%clk 0:00:19]} 31. Rg3 {[%clk 0:00:57]}  Kc8 {[%clk 0:00:18]} 32. Rcg1 {[%clk 0:00:56]}  Kd7 {[%clk 0:00:17]} 33. Rxe3 {[%clk 0:00:57]}  Rh4 {[%clk 0:00:17]} 34. Rg4 {[%clk 0:00:56]}  Rh7 {[%clk 0:00:15]} 35. Rf3 {[%clk 0:00:56]}  c6 {[%clk 0:00:13]} 36. e4 {[%clk 0:00:55]}  cxd5 {[%clk 0:00:13]} 37. exd5 {[%clk 0:00:56]}  Bd8 {[%clk 0:00:12]} 38. b4 {[%clk 0:00:55]}  b6 {[%clk 0:00:12]} 39. Rfg3 {[%clk 0:00:54]}  bxa5 {[%clk 0:00:11]} 40. Rg7+ {[%clk 0:00:55]}  Rxg7 {[%clk 0:00:11]} 41. Rxg7+ {[%clk 0:00:56]}  Kc8 {[%clk 0:00:09]} 42. bxa5 {[%clk 0:00:56]}  Bxa5 {[%clk 0:00:09]} 43. h4 {[%clk 0:00:56]}  Bd8 {[%clk 0:00:08]} 44. h5 {[%clk 0:00:56]}  Bf6 {[%clk 0:00:08]} 45. h6 {[%clk 0:00:56]}  e4 {[%clk 0:00:08]} 46. dxe4 {[%clk 0:00:56]}  a5 {[%clk 0:00:08]} 47. Ra7 {[%clk 0:00:56]}  a4 {[%clk 0:00:07]} 48. Rxa4 {[%clk 0:00:56]}  Kd7 {[%clk 0:00:07]} 49. h7 {[%clk 0:00:56]}  Ke8 {[%clk 0:00:07]} 50. h8=Q+ {[%clk 0:00:57]} 1-0


[Site "https://www.chess.com"]

[Event "Titled Tuesday Blitz January 17 Early 2023"]
[White "Mirzoev, Azer"]
[Black "Jimenez, Joaquin"]
[WhiteFideId "13400304"]
[BlackFideId "109860"]
[WhiteElo "2416"]
[BlackElo "2195"]
[Result "1/2-1/2"]
[Round "04"]
[TimeControl "180+2"]
[Date "2023.01.17"]
[WhiteClock "0:00:31"]
[BlackClock "0:00:19"]

1. c4 {[%clk 0:03:00]}  Nf6 {[%clk 0:02:58]} 2. Nc3 {[%clk 0:03:00]}  g6 {[%clk 0:02:58]} 3. g3 {[%clk 0:03:00]}  d6 {[%clk 0:02:55]} 4. Bg2 {[%clk 0:03:00]}  Bg7 {[%clk 0:02:54]} 5. d4 {[%clk 0:03:00]}  O-O {[%clk 0:02:52]} 6. Nf3 {[%clk 0:03:00]}  Nbd7 {[%clk 0:02:45]} 7. O-O {[%clk 0:03:00]}  e5 {[%clk 0:02:45]} 8. Qc2 {[%clk 0:02:59]}  exd4 {[%clk 0:02:41]} 9. Nxd4 {[%clk 0:02:59]}  Re8 {[%clk 0:02:36]} 10. Rd1 {[%clk 0:02:59]}  Nc5 {[%clk 0:02:31]} 11. b3 {[%clk 0:02:58]}  a5 {[%clk 0:02:20]} 12. Ba3 {[%clk 0:02:56]}  Qe7 {[%clk 0:02:10]} 13. Rac1 {[%clk 0:02:55]}  Nce4 {[%clk 0:01:50]} 14. Nxe4 {[%clk 0:02:51]}  Nxe4 {[%clk 0:01:48]} 15. e3 {[%clk 0:02:42]}  h5 {[%clk 0:01:32]} 16. Re1 {[%clk 0:02:34]}  h4 {[%clk 0:01:23]} 17. Rcd1 {[%clk 0:02:34]}  hxg3 {[%clk 0:01:21]} 18. hxg3 {[%clk 0:02:33]}  Bd7 {[%clk 0:01:07]} 19. Bb2 {[%clk 0:02:28]}  a4 {[%clk 0:01:05]} 20. b4 {[%clk 0:02:27]}  a3 {[%clk 0:01:04]} 21. Ba1 {[%clk 0:02:26]}  Ba4 {[%clk 0:01:00]} 22. Nb3 {[%clk 0:02:26]}  Bxa1 {[%clk 0:00:57]} 23. Rxa1 {[%clk 0:02:25]}  Qe5 {[%clk 0:00:46]} 24. Rab1 {[%clk 0:02:10]}  f5 {[%clk 0:00:31]} 25. Rec1 {[%clk 0:01:50]}  Kg7 {[%clk 0:00:28]} 26. Qd3 {[%clk 0:01:43]}  Bxb3 {[%clk 0:00:27]} 27. Rxb3 {[%clk 0:01:38]}  Rh8 {[%clk 0:00:21]} 28. Qd4 {[%clk 0:01:17]}  Qxd4 {[%clk 0:00:20]} 29. exd4 {[%clk 0:01:17]}  Rhe8 {[%clk 0:00:18]} 30. b5 {[%clk 0:01:13]}  Nd2 {[%clk 0:00:17]} 31. Re3 {[%clk 0:01:05]}  Rxe3 {[%clk 0:00:15]} 32. fxe3 {[%clk 0:01:04]}  Ne4 {[%clk 0:00:16]} 33. g4 {[%clk 0:01:00]}  Kf6 {[%clk 0:00:15]} 34. gxf5 {[%clk 0:00:48]}  gxf5 {[%clk 0:00:15]} 35. Bxe4 {[%clk 0:00:48]}  fxe4 {[%clk 0:00:15]} 36. Rf1+ {[%clk 0:00:49]}  Ke7 {[%clk 0:00:14]} 37. Rf4 {[%clk 0:00:48]}  Ra4 {[%clk 0:00:14]} 38. Rxe4+ {[%clk 0:00:47]}  Kd7 {[%clk 0:00:14]} 39. d5 {[%clk 0:00:42]}  Rb4 {[%clk 0:00:14]} 40. Rf4 {[%clk 0:00:40]}  Rb1+ {[%clk 0:00:13]} 41. Rf1 {[%clk 0:00:40]}  Rb2 {[%clk 0:00:12]} 42. Rf2 {[%clk 0:00:35]}  c6 {[%clk 0:00:12]} 43. bxc6+ {[%clk 0:00:33]}  bxc6 {[%clk 0:00:12]} 44. Kf1 {[%clk 0:00:29]}  cxd5 {[%clk 0:00:13]} 45. cxd5 {[%clk 0:00:29]}  Kc7 {[%clk 0:00:13]} 46. Ke1 {[%clk 0:00:21]}  Kb6 {[%clk 0:00:13]} 47. Rd2 {[%clk 0:00:21]}  Kc5 {[%clk 0:00:11]} 48. Ke2 {[%clk 0:00:21]}  Rxd2+ {[%clk 0:00:11]} 49. Kxd2 {[%clk 0:00:21]}  Kxd5 {[%clk 0:00:12]} 50. Kd3 {[%clk 0:00:22]}  Ke5 {[%clk 0:00:12]} 51. e4 {[%clk 0:00:22]}  d5 {[%clk 0:00:13]} 52. exd5 {[%clk 0:00:22]}  Kxd5 {[%clk 0:00:14]} 53. Kc3 {[%clk 0:00:23]}  Kc5 {[%clk 0:00:14]} 54. Kb3 {[%clk 0:00:24]}  Kb5 {[%clk 0:00:15]} 55. Kxa3 {[%clk 0:00:25]}  Ka5 {[%clk 0:00:15]} 56. Kb3 {[%clk 0:00:25]}  Kb5 {[%clk 0:00:16]} 57. a4+ {[%clk 0:00:26]}  Ka5 {[%clk 0:00:17]} 58. Ka3 {[%clk 0:00:27]}  Kb6 {[%clk 0:00:17]} 59. Kb4 {[%clk 0:00:28]}  Ka6 {[%clk 0:00:18]} 60. a5 {[%clk 0:00:28]}  Ka7 {[%clk 0:00:18]} 61. Kc4 {[%clk 0:00:29]}  Ka6 {[%clk 0:00:18]} 62. Kb4 {[%clk 0:00:30]}  Ka7 {[%clk 0:00:19]} 63. Kb5 {[%clk 0:00:30]}  Kb7 {[%clk 0:00:19]} 64. Ka4 {[%clk 0:00:31]}  Ka6 {[%clk 0:00:19]} 65. Kb4 {[%clk 0:00:31]} 1/2-1/2


[Site "https://www.chess.com"]

[Event "Titled Tuesday Blitz January 17 Early 2023"]
[White "Estrada Nieto, Julian"]
[Black "Papasimakopoulos, Alexandros"]
[WhiteFideId "5101018"]
[BlackFideId "4244125"]
[WhiteElo "2215"]
[BlackElo "2401"]
[Result "1/2-1/2"]
[Round "04"]
[TimeControl "180+2"]
[Date "2023.01.17"]
[WhiteClock "0:01:30"]
[BlackClock "0:01:59"]

1. e4 {[%clk 0:03:00]}  e6 {[%clk 0:02:58]} 2. d4 {[%clk 0:03:00]}  d5 {[%clk 0:02:56]} 3. Nd2 {[%clk 0:03:00]}  Nf6 {[%clk 0:02:56]} 4. e5 {[%clk 0:03:00]}  Nfd7 {[%clk 0:02:55]} 5. Bd3 {[%clk 0:03:01]}  c5 {[%clk 0:02:55]} 6. c3 {[%clk 0:03:01]}  Nc6 {[%clk 0:02:54]} 7. Ne2 {[%clk 0:03:02]}  cxd4 {[%clk 0:02:55]} 8. cxd4 {[%clk 0:03:02]}  f6 {[%clk 0:02:55]} 9. exf6 {[%clk 0:03:03]}  Nxf6 {[%clk 0:02:56]} 10. Nf3 {[%clk 0:03:04]}  Bd6 {[%clk 0:02:56]} 11. O-O {[%clk 0:03:04]}  Qc7 {[%clk 0:02:56]} 12. Bg5 {[%clk 0:03:04]}  O-O {[%clk 0:02:56]} 13. Bh4 {[%clk 0:03:05]}  Nh5 {[%clk 0:02:57]} 14. Qc2 {[%clk 0:03:02]}  h6 {[%clk 0:02:57]} 15. Bh7+ {[%clk 0:02:56]}  Kh8 {[%clk 0:02:58]} 16. Bg6 {[%clk 0:02:57]}  Rxf3 {[%clk 0:02:58]} 17. gxf3 {[%clk 0:02:52]}  Bxh2+ {[%clk 0:02:57]} 18. Kg2 {[%clk 0:02:52]}  Nf4+ {[%clk 0:02:57]} 19. Nxf4 {[%clk 0:02:52]}  Qxf4 {[%clk 0:02:58]} 20. Bg3 {[%clk 0:02:51]}  Bxg3 {[%clk 0:02:59]} 21. fxg3 {[%clk 0:02:51]}  Qf6 {[%clk 0:02:59]} 22. Be8 {[%clk 0:02:22]}  Nxd4 {[%clk 0:02:59]} 23. Qc7 {[%clk 0:02:22]}  b6 {[%clk 0:02:58]} 24. Bc6 {[%clk 0:01:57]}  Nxc6 {[%clk 0:02:20]} 25. Qxc6 {[%clk 0:01:57]}  Rb8 {[%clk 0:02:20]} 26. Qc7 {[%clk 0:01:52]}  Ra8 {[%clk 0:02:21]} 27. Qc6 {[%clk 0:01:43]}  Rb8 {[%clk 0:02:06]} 28. Qc7 {[%clk 0:01:39]}  Ra8 {[%clk 0:01:59]} 29. Qc6 {[%clk 0:01:30]} 1/2-1/2


[Site "https://www.chess.com"]

[Event "Titled Tuesday Blitz January 17 Early 2023"]
[White "Volkov, Maksim"]
[Black "Bruned, Yvain"]
[WhiteFideId "54123070"]
[BlackFideId "2250292"]
[WhiteElo "2258"]
[BlackElo "2286"]
[Result "1-0"]
[Round "04"]
[TimeControl "180+2"]
[Date "2023.01.17"]
[WhiteClock "0:01:01"]
[BlackClock "0:00:12"]

1. d4 {[%clk 0:03:00]}  b6 {[%clk 0:03:00]} 2. c4 {[%clk 0:02:56]}  Bb7 {[%clk 0:03:01]} 3. f3 {[%clk 0:02:55]}  e6 {[%clk 0:03:00]} 4. e4 {[%clk 0:02:55]}  Bb4+ {[%clk 0:03:01]} 5. Bd2 {[%clk 0:02:54]}  Bxd2+ {[%clk 0:02:59]} 6. Qxd2 {[%clk 0:02:55]}  f5 {[%clk 0:03:00]} 7. exf5 {[%clk 0:02:47]}  exf5 {[%clk 0:03:00]} 8. Nc3 {[%clk 0:02:47]}  Nf6 {[%clk 0:02:36]} 9. Bd3 {[%clk 0:02:42]}  Qe7+ {[%clk 0:02:32]} 10. Nge2 {[%clk 0:02:41]}  g6 {[%clk 0:02:30]} 11. d5 {[%clk 0:02:35]}  O-O {[%clk 0:02:27]} 12. h4 {[%clk 0:02:22]}  Na6 {[%clk 0:02:22]} 13. O-O-O {[%clk 0:02:19]}  Nc5 {[%clk 0:02:17]} 14. Bc2 {[%clk 0:02:16]}  a5 {[%clk 0:02:16]} 15. h5 {[%clk 0:02:02]}  Nxh5 {[%clk 0:01:52]} 16. g4 {[%clk 0:02:02]}  fxg4 {[%clk 0:01:46]} 17. fxg4 {[%clk 0:02:02]}  Nf6 {[%clk 0:01:47]} 18. Nf4 {[%clk 0:01:51]}  Nfe4 {[%clk 0:01:03]} 19. Nxe4 {[%clk 0:01:49]}  Nxe4 {[%clk 0:01:02]} 20. Qh2 {[%clk 0:01:49]}  Ng5 {[%clk 0:00:57]} 21. Nxg6 {[%clk 0:01:39]}  Qe3+ {[%clk 0:00:55]} 22. Kb1 {[%clk 0:01:39]}  Rf2 {[%clk 0:00:52]} 23. Ne7+ {[%clk 0:01:23]}  Kf8 {[%clk 0:00:39]} 24. Qh6+ {[%clk 0:01:22]}  Kxe7 {[%clk 0:00:36]} 25. Rhe1 {[%clk 0:01:20]}  Re2 {[%clk 0:00:32]} 26. d6+ {[%clk 0:01:15]}  Kf7 {[%clk 0:00:19]} 27. Rxe2 {[%clk 0:01:10]}  Qxe2 {[%clk 0:00:19]} 28. Qxg5 {[%clk 0:01:10]}  Qf3 {[%clk 0:00:14]} 29. Qe7+ {[%clk 0:01:06]}  Kg8 {[%clk 0:00:13]} 30. Qxh7+ {[%clk 0:01:06]}  Kf8 {[%clk 0:00:12]} 31. dxc7 {[%clk 0:01:01]} 1-0


[Site "https://www.chess.com"]

[Event "Titled Tuesday Blitz January 17 Early 2023"]
[White "Weetik, Vjacheslav"]
[Black "Castellanos Gomez, Alejandro"]
[WhiteFideId "4153472"]
[BlackFideId "22284141"]
[WhiteElo "2423"]
[BlackElo "2253"]
[Result "1-0"]
[Round "04"]
[TimeControl "180+2"]
[Date "2023.01.17"]
[WhiteClock "0:00:05"]
[BlackClock "0:00:02"]

1. d4 {[%clk 0:02:58]}  Nf6 {[%clk 0:02:56]} 2. Nf3 {[%clk 0:02:58]}  e6 {[%clk 0:02:56]} 3. c4 {[%clk 0:02:58]}  d5 {[%clk 0:02:56]} 4. g3 {[%clk 0:02:58]}  Be7 {[%clk 0:02:54]} 5. Bg2 {[%clk 0:02:59]}  O-O {[%clk 0:02:55]} 6. O-O {[%clk 0:02:59]}  c6 {[%clk 0:02:53]} 7. Nc3 {[%clk 0:02:59]}  dxc4 {[%clk 0:02:45]} 8. Ne5 {[%clk 0:02:59]}  c5 {[%clk 0:02:44]} 9. dxc5 {[%clk 0:02:53]}  Qc7 {[%clk 0:02:38]} 10. Nxc4 {[%clk 0:02:50]}  Qxc5 {[%clk 0:02:38]} 11. b3 {[%clk 0:02:33]}  Nc6 {[%clk 0:02:35]} 12. Ba3 {[%clk 0:02:29]}  Qh5 {[%clk 0:02:30]} 13. Bxc6 {[%clk 0:02:13]}  Bxa3 {[%clk 0:02:30]} 14. Bf3 {[%clk 0:02:13]}  Qc5 {[%clk 0:02:21]} 15. Qd3 {[%clk 0:01:36]}  Bb4 {[%clk 0:02:17]} 16. Rac1 {[%clk 0:01:35]}  Qe7 {[%clk 0:02:06]} 17. Nb5 {[%clk 0:01:20]}  Rd8 {[%clk 0:02:02]} 18. Qb1 {[%clk 0:00:57]}  Bd7 {[%clk 0:02:00]} 19. Nc3 {[%clk 0:00:51]}  Bc6 {[%clk 0:01:55]} 20. Bxc6 {[%clk 0:00:51]}  bxc6 {[%clk 0:01:55]} 21. Ne4 {[%clk 0:00:51]}  Rac8 {[%clk 0:01:47]} 22. Nxf6+ {[%clk 0:00:50]}  Qxf6 {[%clk 0:01:48]} 23. Qe4 {[%clk 0:00:48]}  Rd5 {[%clk 0:01:28]} 24. Kg2 {[%clk 0:00:40]}  c5 {[%clk 0:01:18]} 25. Rc2 {[%clk 0:00:28]}  Rcd8 {[%clk 0:01:14]} 26. Rfc1 {[%clk 0:00:24]}  Rd1 {[%clk 0:00:55]} 27. Rxd1 {[%clk 0:00:18]}  Rxd1 {[%clk 0:00:56]} 28. a3 {[%clk 0:00:19]}  Be1 {[%clk 0:00:45]} 29. Qf3 {[%clk 0:00:11]}  Qe7 {[%clk 0:00:25]} 30. Ne5 {[%clk 0:00:08]}  h6 {[%clk 0:00:20]} 31. Nc6 {[%clk 0:00:06]}  Qc7 {[%clk 0:00:19]} 32. Rxc5 {[%clk 0:00:06]}  Qb6 {[%clk 0:00:12]} 33. Rc4 {[%clk 0:00:05]}  Rd5 {[%clk 0:00:13]} 34. e3 {[%clk 0:00:04]}  Rf5 {[%clk 0:00:13]} 35. Ne7+ {[%clk 0:00:04]}  Kh7 {[%clk 0:00:10]} 36. Nxf5 {[%clk 0:00:04]}  exf5 {[%clk 0:00:10]} 37. Qxf5+ {[%clk 0:00:05]}  g6 {[%clk 0:00:02]} 38. Qxf7+ {[%clk 0:00:05]}  Kh8 {[%clk 0:00:02]} 39. Rc8+ {[%clk 0:00:05]} 1-0


[Site "https://www.chess.com"]

[Event "Titled Tuesday Blitz January 17 Early 2023"]
[White "Aslanov, Umid"]
[Black "Lewtak, Damian"]
[WhiteFideId "13412620"]
[BlackFideId "1141724"]
[WhiteElo "2273"]
[BlackElo "2381"]
[Result "1-0"]
[Round "04"]
[TimeControl "180+2"]
[Date "2023.01.17"]
[WhiteClock "0:00:24"]
[BlackClock "0:00:01"]

1. e4 {[%clk 0:03:00]}  c5 {[%clk 0:02:58]} 2. Nf3 {[%clk 0:03:01]}  d6 {[%clk 0:02:58]} 3. d4 {[%clk 0:03:01]}  cxd4 {[%clk 0:02:58]} 4. Nxd4 {[%clk 0:03:02]}  Nf6 {[%clk 0:02:59]} 5. Nc3 {[%clk 0:03:03]}  Nc6 {[%clk 0:03:00]} 6. Bc4 {[%clk 0:03:03]}  Qb6 {[%clk 0:02:56]} 7. Nxc6 {[%clk 0:02:54]}  bxc6 {[%clk 0:02:57]} 8. O-O {[%clk 0:02:54]}  g6 {[%clk 0:02:52]} 9. Qe1 {[%clk 0:02:54]}  e5 {[%clk 0:02:43]} 10. Bb3 {[%clk 0:02:51]}  Bg7 {[%clk 0:02:40]} 11. Be3 {[%clk 0:02:51]}  Qc7 {[%clk 0:02:40]} 12. f3 {[%clk 0:02:45]}  O-O {[%clk 0:02:40]} 13. Qd2 {[%clk 0:02:44]}  Bb7 {[%clk 0:02:32]} 14. Rad1 {[%clk 0:02:42]}  Rad8 {[%clk 0:02:25]} 15. Qf2 {[%clk 0:02:33]}  d5 {[%clk 0:02:20]} 16. Bxa7 {[%clk 0:02:24]}  d4 {[%clk 0:02:18]} 17. Na4 {[%clk 0:02:24]}  Ra8 {[%clk 0:02:11]} 18. Bc5 {[%clk 0:02:23]}  Rfe8 {[%clk 0:02:06]} 19. c3 {[%clk 0:02:13]}  Ba6 {[%clk 0:01:59]} 20. Rfe1 {[%clk 0:02:11]}  Bb5 {[%clk 0:01:54]} 21. Nb6 {[%clk 0:01:56]}  Rab8 {[%clk 0:01:47]} 22. cxd4 {[%clk 0:01:56]}  exd4 {[%clk 0:01:43]} 23. Bxd4 {[%clk 0:01:57]}  Nxe4 {[%clk 0:01:43]} 24. Rxe4 {[%clk 0:01:30]}  Rxe4 {[%clk 0:01:30]} 25. fxe4 {[%clk 0:01:31]}  Bxd4 {[%clk 0:01:29]} 26. Rxd4 {[%clk 0:01:19]}  Rxb6 {[%clk 0:01:18]} 27. Bxf7+ {[%clk 0:01:13]}  Qxf7 {[%clk 0:01:16]} 28. Rd8+ {[%clk 0:01:12]}  Kg7 {[%clk 0:01:16]} 29. Qd4+ {[%clk 0:01:12]}  Kh6 {[%clk 0:01:15]} 30. Qe3+ {[%clk 0:01:07]}  Kg7 {[%clk 0:00:56]} 31. Qc3+ {[%clk 0:01:06]}  Kh6 {[%clk 0:00:40]} 32. Qh3+ {[%clk 0:01:06]}  Kg5 {[%clk 0:00:35]} 33. Qg3+ {[%clk 0:00:43]}  Kh5 {[%clk 0:00:34]} 34. Qh3+ {[%clk 0:00:43]}  Kg5 {[%clk 0:00:34]} 35. Qe3+ {[%clk 0:00:41]}  Qf4 {[%clk 0:00:21]} 36. h4+ {[%clk 0:00:37]}  Kg4 {[%clk 0:00:21]} 37. Qxb6 {[%clk 0:00:32]}  Qc1+ {[%clk 0:00:06]} 38. Kh2 {[%clk 0:00:32]}  Qf4+ {[%clk 0:00:06]} 39. Kg1 {[%clk 0:00:30]}  Qc1+ {[%clk 0:00:06]} 40. Kh2 {[%clk 0:00:30]}  Qf4+ {[%clk 0:00:05]} 41. Kh1 {[%clk 0:00:31]}  Qc1+ {[%clk 0:00:03]} 42. Qg1 {[%clk 0:00:31]}  Qf4 {[%clk 0:00:02]} 43. e5 {[%clk 0:00:28]}  Qg3 {[%clk 0:00:01]} 44. Rd4+ {[%clk 0:00:24]} 1-0


[Site "https://www.chess.com"]